fUST/lending_fUST_20251120
["ID","MTS","AMOUNT","RATE_DAILY","PERIOD"]
[394455674,1763592645437,-500.0,0.00010238,2]
[394455675,1763592645446,-3002.21045256,0.00010238,2]
[394455676,1763592645455,-500.0,0.00010238,2]
[394455677,1763592645465,-500.0,0.00010238,2]
[394455678,1763592645474,-500.0,0.00010238,2]
[394455679,1763592645485,-500.0,0.00010238,2]
[394455680,1763592645494,-467.67872934,0.00010238,2]
[394455681,1763592645506,-32.32127066,0.00010238,2]
[394455682,1763592645516,-3002.21045256,0.00010238,2]
[394455683,1763592645525,-500.0,0.00010238,2]
[394455684,1763592645536,-352.01475444,0.00010238,2]
[394455695,1763592646750,-1023.33494155,0.00010238,2]
[394455697,1763592646788,-830.6395,0.00010238,2]
[394455698,1763592646799,-796.22125657,0.00010238,2]
[394455699,1763592646809,-500.0,0.00010238,2]
[394455700,1763592646818,-178.74874343,0.00010238,2]
[394455701,1763592646994,-2823.46170913,0.00010238,2]
[394455702,1763592647004,-500.0,0.00010238,2]
[394455703,1763592647013,-370.18674746,0.00010238,2]
[394455704,1763592647023,-500.0,0.00010238,2]
[394455705,1763592647032,-500.0,0.00010238,2]
[394455706,1763592647042,-3002.21045256,0.00010238,2]
[394455707,1763592647052,-500.0,0.00010238,2]
[394455708,1763592647061,-500.0,0.00010238,2]
[394455709,1763592647071,-3002.21045256,0.00010238,2]
[394455710,1763592647081,-500.0,0.00010238,2]
[394455711,1763592647092,-3002.21045256,0.00010238,2]
[394455712,1763592647102,-500.0,0.00010238,2]
[394455713,1763592647111,-3002.21045256,0.00010238,2]
[394455714,1763592647121,-500.0,0.00010238,2]
[394455715,1763592647131,-3002.21045256,0.00010238,2]
[394455716,1763592647140,-50203.5931636,0.00010343,2]
[394455717,1763592647150,-494.293216,0.00010343,2]
[394455727,1763593003302,826.894195,0.00032876,120]
[394455728,1763593037281,1200.0,0.00010033,2]
[394455729,1763593060090,193.18696523,0.00010083,2]
[394455730,1763593061222,173.0,0.00039966,20]
[394455731,1763593083145,193.18696523,0.00010083,2]
[394455732,1763593105392,193.18696523,0.00010083,2]
[394455733,1763593128321,193.18696523,0.00010083,2]
[394455737,1763593151445,193.18696523,0.00010083,2]
[394455739,1763593173630,193.18696523,0.00010083,2]
[394455794,1763593280393,151.0,0.00039966,39]
[394455797,1763593280704,201.228896,0.00039966,39]
[394455807,1763593287158,151.0,0.00039966,39]
[394455808,1763593287468,151.0,0.00039966,39]
[394455809,1763593287917,151.0,0.00039966,39]
[394455840,1763593350131,-193.18696523,0.00010107,2]
[394455843,1763593358142,151.0,0.00039966,39]
[394455845,1763593358428,151.0,0.00039966,39]
[394455847,1763593358778,151.0,0.00039966,39]
[394455849,1763593359072,151.0,0.00039966,39]
[394455851,1763593359372,151.0,0.00039966,39]
[394455853,1763593359655,151.0,0.00039966,39]
[394455855,1763593359952,151.0,0.00039966,39]
[394455857,1763593360256,151.0,0.00039966,39]
[394455859,1763593360574,151.0,0.00039966,39]
[394455861,1763593360851,151.0,0.00039966,39]
[394455863,1763593361197,151.0,0.00039966,39]
[394455864,1763593361513,151.0,0.00039966,39]
[394455866,1763593361945,151.0,0.00039966,39]
[394455868,1763593362108,151.0,0.00039966,39]
[394455871,1763593362408,152.347,0.00039966,39]
[394455887,1763593380101,-193.18696523,0.0001021,2]
[394455888,1763593390228,450.881548,0.00039966,39]
[394455889,1763593390534,450.881548,0.00039966,39]
[394455890,1763593390836,450.881548,0.00039966,39]
[394455891,1763593391153,450.881548,0.00039966,39]
[394455892,1763593391464,450.881548,0.00039966,39]
[394455893,1763593391773,450.881548,0.00039966,39]
[394455894,1763593392139,450.881548,0.00039966,39]
[394455895,1763593392443,450.881548,0.00039966,39]
[394455896,1763593392749,450.881548,0.00039966,39]
[394455897,1763593393168,450.881548,0.00039966,39]
[394455898,1763593393363,450.881548,0.00039966,39]
[394455899,1763593393713,450.881548,0.00039966,39]
[394455900,1763593393959,450.881548,0.00039966,39]
[394455901,1763593394270,450.881548,0.00039966,39]
[394455902,1763593394567,450.881548,0.00039966,39]
[394455903,1763593394865,450.881548,0.00039966,39]
[394455904,1763593395154,450.881548,0.00039966,39]
[394455905,1763593395598,450.881548,0.00039966,39]
[394455906,1763593395890,450.881548,0.00039966,39]
[394455907,1763593396213,450.881541,0.00039966,39]
[394455922,1763593403287,9613.63606954,0.00010134,2]
[394455923,1763593403317,10000.01,0.00010134,2]
[394455924,1763593403345,10000.01,0.00010134,2]
[394455925,1763593403371,10000.01,0.00010134,2]
[394455926,1763593403399,10000.01,0.00010134,2]
[394455927,1763593403425,10000.01,0.00010134,2]
[394455928,1763593403451,10000.01,0.00010134,2]
[394455929,1763593403475,10000.01,0.00010134,2]
[394455930,1763593403501,10000.01,0.00010134,2]
[394455931,1763593403527,10000.01,0.00010134,2]
[394455976,1763593416133,151.0,0.00039966,39]
[394455977,1763593416434,151.0,0.00039966,39]
[394455978,1763593416721,151.0,0.00039966,39]
[394455979,1763593417011,151.0,0.00039966,39]
[394455981,1763593417307,151.0,0.00039966,39]
[394455983,1763593417603,151.0,0.00039966,39]
[394455985,1763593417900,151.0,0.00039966,39]
[394455987,1763593418219,151.0,0.00039966,39]
[394455989,1763593418520,151.0,0.00039966,39]
[394455991,1763593418841,151.0,0.00039966,39]
[394455993,1763593419135,151.0,0.00039966,39]
[394455995,1763593419422,175.283513,0.00039966,39]
[394456009,1763593445599,-300.0,0.00010133,2]
[394456012,1763593460702,-9685.17238247,0.00010134,2]
[394456013,1763593466755,-10000.01,0.00010134,2]
[394456016,1763593503520,151.0,0.00039966,28]
[394456017,1763593503849,151.0,0.00039966,28]
[394456018,1763593504165,151.0,0.00039966,28]
[394456019,1763593504457,234.837735,0.00039966,28]
[394456045,1763593534929,195.800749,0.00039966,39]
[394456047,1763593535226,195.800749,0.00039966,39]
[394456049,1763593535554,195.800749,0.00039966,39]
[394456050,1763593535893,195.800749,0.00039966,39]
[394456051,1763593536203,195.800749,0.00039966,39]
[394456052,1763593536725,195.800749,0.00039966,39]
[394456053,1763593536867,195.800749,0.00039966,39]
[394456054,1763593537174,195.800749,0.00039966,39]
[394456055,1763593537457,195.800749,0.00039966,39]
[394456056,1763593537746,195.800749,0.00039966,39]
[394456057,1763593538051,195.800749,0.00039966,39]
[394456058,1763593538566,195.800749,0.00039966,39]
[394456059,1763593538699,195.800749,0.00039966,39]
[394456060,1763593538997,195.800749,0.00039966,39]
[394456061,1763593539314,195.800749,0.00039966,39]
[394456062,1763593539615,195.800749,0.00039966,39]
[394456063,1763593539917,195.800749,0.00039966,39]
[394456064,1763593540239,195.800749,0.00039966,39]
[394456065,1763593540526,195.800749,0.00039966,39]
[394456066,1763593540819,195.800753,0.00039966,39]
[394456067,1763593618832,376.26214493,9.802e-05,2]
[394456068,1763593621785,677.27186088,9.802e-05,2]
[394456069,1763593625227,1204.03886378,9.802e-05,2]
[394456077,1763593754023,300.0,0.00010031,2]
[394456078,1763593761988,300.0,0.00010031,2]
[394456079,1763593784038,300.0,0.00010031,2]
[394456080,1763593790601,260.89,0.00015689,30]
[394456081,1763593790998,521.78,0.00017115,30]
[394456082,1763593791453,492.41,0.00018542,30]
[394456083,1763593791482,290.26,0.00018542,30]
[394456084,1763593792350,7610.0,0.00039966,20]
[394456085,1763593806123,300.0,0.00010031,2]
[394456088,1763593814655,377.30824253,0.00010031,2]
[394456093,1763593829882,1500.0,0.00010031,2]
[394456258,1763593837631,-532.2112468,0.00010132,2]
[394456260,1763593837640,-500.0,0.00010132,2]
[394456262,1763593837649,-500.0,0.00010132,2]
[394456264,1763593837658,-500.0,0.00010132,2]
[394456266,1763593837667,-500.0,0.00010132,2]
[394456268,1763593837676,-746.88228486,0.00010132,2]
[394456270,1763593837686,-500.0,0.00010132,2]
[394456287,1763593837834,-500.0,0.00010132,2]
[394456289,1763593837845,-392.17697142,0.00010132,2]
[394456294,1763593837879,2400.0,0.00010031,2]
[394456296,1763593837892,-107.82302858,0.00010132,2]
[394456298,1763593837902,-194.17697142,0.00010132,2]
[394456301,1763593837917,-305.82302858,0.00010132,2]
[394456303,1763593837926,-500.0,0.00010132,2]
[394456305,1763593837935,-746.88228486,0.00010132,2]
[394456307,1763593837945,-500.0,0.00010132,2]
[394456309,1763593837955,-322.70066541,0.00010132,2]
[394456311,1763593837964,-500.0,0.00010132,2]
[394456313,1763593837974,-500.0,0.00010132,2]
[394456315,1763593837984,-746.88228486,0.00010132,2]
[394456317,1763593837993,-500.0,0.00010132,2]
[394456319,1763593838003,-500.0,0.00010132,2]
[394456321,1763593838012,-500.0,0.00010132,2]
[394456323,1763593838023,-500.0,0.00010132,2]
[394456325,1763593838032,-500.0,0.00010132,2]
[394456327,1763593838042,-746.88228486,0.00010132,2]
[394456329,1763593838052,-500.0,0.00010132,2]
[394456331,1763593838063,-500.0,0.00010132,2]
[394456333,1763593838078,-500.0,0.00010132,2]
[394456335,1763593838087,-746.88228486,0.00010132,2]
[394456337,1763593838097,-500.0,0.00010132,2]
[394456339,1763593838108,-500.0,0.00010132,2]
[394456341,1763593838118,-500.0,0.00010132,2]
[394456343,1763593838128,-746.88228486,0.00010132,2]
[394456345,1763593838138,-500.0,0.00010132,2]
[394456347,1763593838151,-746.88228486,0.00010132,2]
[394456349,1763593838163,-500.0,0.00010132,2]
[394456351,1763593838174,-500.0,0.00010132,2]
[394456353,1763593838185,-746.88228486,0.00010132,2]
[394456355,1763593838195,-500.0,0.00010132,2]
[394456357,1763593838205,-500.0,0.00010132,2]
[394456359,1763593838216,-500.0,0.00010132,2]
[394456361,1763593838226,-746.88228486,0.00010132,2]
[394456364,1763593838240,-538.35372865,0.00010132,2]
[394456366,1763593838254,-61.91580994,0.00010132,2]
[394456430,1763593845444,-98.02001464,0.00010132,2]
[394456435,1763593846170,2030.37528777,0.00010031,2]
[394456436,1763593853972,2492.3264697,0.00010031,2]
[394456437,1763593853998,10000.01,0.00010031,2]
[394456438,1763593854029,13969.78482722,0.00010031,2]
[394456439,1763593862561,6657.67202983,0.00010031,2]
[394456440,1763593870367,253.17,0.00015619,30]
[394456441,1763593870781,506.34,0.00017039,30]
[394456442,1763593871216,759.51,0.00018459,30]
[394456443,1763593878740,300.0,0.0001003,2]
[394456444,1763593901218,300.0,0.0001003,2]
[394456445,1763593923598,41075.43010183,0.00010031,2]
[394456446,1763594106969,1000.0,0.00010128,2]
[394456447,1763594107608,1000.0,0.00010128,2]
[394456448,1763594108255,1000.0,0.00010128,2]
[394456449,1763594108882,1000.0,0.00010128,2]
[394456450,1763594109510,1000.0,0.00010128,2]
[394456451,1763594110118,1000.0,0.00010128,2]
[394456452,1763594110759,1000.0,0.00010128,2]
[394456453,1763594111488,1000.0,0.00010128,2]
[394456454,1763594112125,1146.27147923,0.00010128,2]
[394456455,1763594118467,193.20199474,0.00010031,2]
[394456456,1763594118844,435.11365554,9.992e-05,2]
[394456457,1763594140910,193.20199474,0.00010031,2]
[394456458,1763594163327,32.22087575,0.00010031,2]
[394456459,1763594163354,160.98111899,0.00010031,2]
[394456460,1763594168027,163.44132153,0.00010033,2]
[394456461,1763594186440,300.0,0.00010031,2]
[394456462,1763594209861,300.0,0.00010031,2]
[394456463,1763594232689,300.0,0.00010031,2]
[394456482,1763594255862,5967.34517578,0.00010031,2]
[394456483,1763594267973,1200.0,0.00010131,2]
[394456484,1763594282345,300.0,0.00010131,2]
[394456485,1763594311878,453.46131238,0.00010131,2]
[394456486,1763594314427,500.0,0.00010131,2]
[394456487,1763594314463,500.0,0.00010131,2]
[394456488,1763594314513,500.0,0.00010131,2]
[394456489,1763594314552,500.0,0.00010131,2]
[394456490,1763594314591,500.0,0.00010131,2]
[394456491,1763594314637,500.0,0.00010131,2]
[394456492,1763594314675,500.0,0.00010131,2]
[394456493,1763594314715,500.0,0.00010131,2]
[394456494,1763594314880,500.0,0.00010131,2]
[394456495,1763594314913,500.0,0.00010131,2]
[394456496,1763594314962,500.0,0.00010131,2]
[394456497,1763594315000,500.0,0.00010131,2]
[394456498,1763594315033,500.0,0.00010131,2]
[394456499,1763594315080,500.0,0.00010131,2]
[394456500,1763594315120,500.0,0.00010131,2]
[394456501,1763594315161,500.0,0.00010131,2]
[394456502,1763594315194,500.0,0.00010131,2]
[394456503,1763594315235,500.0,0.00010131,2]
[394456504,1763594315279,500.0,0.00010131,2]
[394456505,1763594315323,46.54868762,0.00010131,2]
[394456506,1763594315349,453.45131238,0.00010131,2]
[394456507,1763594315396,500.0,0.00010131,2]
[394456508,1763594315444,500.0,0.00010131,2]
[394456509,1763594315483,309.89313075,0.00010131,2]
[394456510,1763594315527,613.55853188,0.00010131,2]
[394456511,1763594315573,500.0,0.00010131,2]
[394456512,1763594315604,500.0,0.00010131,2]
[394456513,1763594315637,500.0,0.00010131,2]
[394456514,1763594315678,500.0,0.00010131,2]
[394456515,1763594315714,500.0,0.00010131,2]
[394456516,1763594315749,500.0,0.00010131,2]
[394456517,1763594315794,500.0,0.00010131,2]
[394456518,1763594315844,500.0,0.00010131,2]
[394456519,1763594315878,500.0,0.00010131,2]
[394456520,1763594316060,500.0,0.00010131,2]
[394456521,1763594316100,500.0,0.00010131,2]
[394456522,1763594316149,500.0,0.00010131,2]
[394456523,1763594316196,500.0,0.00010131,2]
[394456524,1763594316233,500.0,0.00010131,2]
[394456525,1763594316277,500.0,0.00010131,2]
[394456526,1763594316327,123.10702499,0.00010131,2]
[394456527,1763594316362,376.89297501,0.00010131,2]
[394456528,1763594316418,500.0,0.00010131,2]
[394456529,1763594316458,500.0,0.00010131,2]
[394456530,1763594316501,500.0,0.00010131,2]
[394456531,1763594316550,165.91744873,0.00010131,2]
[394456532,1763594316582,500.0,0.00010131,2]
[394456533,1763594316628,500.0,0.00010131,2]
[394456534,1763594316660,500.0,0.00010131,2]
[394456535,1763594316702,500.0,0.00010131,2]
[394456536,1763594316743,500.0,0.00010131,2]
[394456537,1763594316784,500.0,0.00010131,2]
[394456538,1763594316832,500.0,0.00010131,2]
[394456539,1763594316871,500.0,0.00010131,2]
[394456540,1763594316911,500.0,0.00010131,2]
[394456541,1763594316948,500.0,0.00010131,2]
[394456542,1763594316986,500.0,0.00010131,2]
[394456543,1763594317040,500.0,0.00010131,2]
[394456544,1763594317079,500.0,0.00010131,2]
[394456545,1763594317117,500.0,0.00010131,2]
[394456546,1763594317155,500.0,0.00010131,2]
[394456547,1763594317193,457.19957626,0.00010131,2]
[394456548,1763594317219,42.80042374,0.00010131,2]
[394456549,1763594317263,500.0,0.00010131,2]
[394456550,1763594317303,500.0,0.00010131,2]
[394456551,1763594317360,500.0,0.00010131,2]
[394456552,1763594317394,500.0,0.00010131,2]
[394456553,1763594317439,500.0,0.00010131,2]
[394456554,1763594317474,500.0,0.00010131,2]
[394456555,1763594317521,500.0,0.00010131,2]
[394456556,1763594317560,500.0,0.00010131,2]
[394456557,1763594317601,500.0,0.00010131,2]
[394456558,1763594317638,500.0,0.00010131,2]
[394456559,1763594317673,500.0,0.00010131,2]
[394456560,1763594317714,500.0,0.00010131,2]
[394456561,1763594317753,500.0,0.00010131,2]
[394456562,1763594317796,500.0,0.00010131,2]
[394456563,1763594317830,500.0,0.00010131,2]
[394456564,1763594321626,193.20199474,0.00010031,2]
[394456565,1763594324617,500.0,0.00010131,2]
[394456566,1763594324688,500.0,0.00010131,2]
[394456567,1763594324786,500.0,0.00010131,2]
[394456568,1763594324827,500.0,0.00010131,2]
[394456569,1763594325026,264.00758152,0.00010131,2]
[394456570,1763594325193,235.99241848,0.00010131,2]
[394456571,1763594325239,500.0,0.00010131,2]
[394456572,1763594325280,500.0,0.00010131,2]
[394456573,1763594325331,500.0,0.00010131,2]
[394456574,1763594325421,500.0,0.00010131,2]
[394456575,1763594325464,500.0,0.00010131,2]
[394456576,1763594325507,500.0,0.00010131,2]
[394456577,1763594325552,500.0,0.00010131,2]
[394456578,1763594325593,500.0,0.00010131,2]
[394456579,1763594325634,500.0,0.00010131,2]
[394456580,1763594325675,500.0,0.00010131,2]
[394456581,1763594325765,500.0,0.00010131,2]
[394456582,1763594325918,500.0,0.00010131,2]
[394456583,1763594326070,500.0,0.00010131,2]
[394456585,1763594338287,500.0,0.00010131,2]
[394456586,1763594338346,231.06322795,0.00010131,2]
[394456587,1763594343975,193.20199474,0.00010031,2]
[394456588,1763594352132,2866.30502993,0.00010131,2]
[394456589,1763594352250,2866.30502993,0.00010131,2]
[394456590,1763594352291,2866.30502993,0.00010131,2]
[394456591,1763594352331,476.82968752,0.00010131,2]
[394456592,1763594352365,2389.47534241,0.00010131,2]
[394456593,1763594352412,2866.30502993,0.00010131,2]
[394456594,1763594352464,2866.30502993,0.00010131,2]
[394456595,1763594352601,1877.92459773,0.00010131,2]
[394456596,1763594352631,988.3804322,0.00010131,2]
[394456597,1763594352678,2866.30502993,0.00010131,2]
[394456598,1763594352718,2866.30502993,0.00010131,2]
[394456599,1763594352781,2866.30502993,0.00010131,2]
[394456600,1763594352843,412.71447801,0.00010131,2]
[394456601,1763594352876,2453.59055192,0.00010131,2]
[394456602,1763594352944,2866.30502993,0.00010131,2]
[394456603,1763594353002,2866.30502993,0.00010131,2]
[394456604,1763594353067,1813.80938822,0.00010131,2]
[394456605,1763594359313,1834.11896392,0.0001003,2]
[394456606,1763594364710,206.57223267,0.00010033,2]
[394456607,1763594367128,206.57223267,9.933e-05,2]
[394456608,1763594375226,1832.66150013,0.0001003,2]
[394456609,1763594383712,163.44132153,0.0001003,2]
[394456610,1763594391069,3000.0,0.0001003,2]
[394456611,1763594402819,783.20457997,9.764e-05,2]
[394456612,1763594406425,1392.36369772,0.00010036,2]
[394456613,1763594413840,1500.0,0.00010029,2]
[394456614,1763594418310,291581.06283594,0.00010034,2]
[394456615,1763594441020,-4572.25996522,9.934e-05,2]
[394456616,1763594441106,-10000.01,9.934e-05,2]
[394456617,1763594447034,-10000.01,9.934e-05,2]
[394456618,1763594447175,-10000.01,9.934e-05,2]
[394456619,1763594506334,366.60022409,0.00032877,120]
[394456635,1763594706184,2175.56827769,9.792e-05,2]
[394456638,1763594789369,307.85,0.00039938,120]
[394456649,1763594953691,193.4,0.00032877,120]
[394456650,1763594973134,-379.124,9.833e-05,2]
[394456651,1763594973156,-193.20199474,9.882e-05,2]
[394456652,1763594973178,-1185.79400526,9.93e-05,2]
[394456653,1763595013839,209.40437684,0.00039938,120]
[394456893,1763595046200,-14.20599474,9.93e-05,2]
[394456895,1763595046210,-454.17491252,0.00010014,2]
[394456897,1763595046219,-512.09610179,0.00010031,2]
[394456898,1763595046228,-645.54368119,0.00010033,2]
[394456900,1763595046238,-317.42291866,0.00010033,2]
[394456901,1763595046247,-500.0,0.00010033,2]
[394456903,1763595046256,-500.0,0.00010033,2]
[394456905,1763595046266,-500.0,0.00010033,2]
[394456907,1763595046275,-500.0,0.00010033,2]
[394456908,1763595046285,-500.0,0.00010033,2]
[394456910,1763595046294,-500.0,0.00010033,2]
[394456911,1763595046303,-500.0,0.00010033,2]
[394456912,1763595046312,-500.0,0.00010033,2]
[394456913,1763595046321,-500.0,0.00010033,2]
[394456914,1763595046330,-500.0,0.00010033,2]
[394456915,1763595046339,-500.0,0.00010033,2]
[394456916,1763595046349,-500.0,0.00010033,2]
[394456917,1763595046358,-500.0,0.00010033,2]
[394456918,1763595046368,-500.0,0.00010033,2]
[394456919,1763595046378,-500.0,0.00010033,2]
[394456920,1763595046387,-500.0,0.00010033,2]
[394456921,1763595046396,-500.0,0.00010033,2]
[394456922,1763595046406,-500.0,0.00010033,2]
[394456923,1763595046415,-500.0,0.00010033,2]
[394456924,1763595046424,-300.0,0.00010033,2]
[394456925,1763595046434,-247.0,0.00010033,2]
[394456926,1763595046444,-1200.0,0.00010033,2]
[394456927,1763595046454,-4889.80801607,0.00010034,2]
[394456935,1763595075710,304.0,0.00039939,30]
[394456940,1763595096845,245.7,0.00016083,30]
[394456941,1763595097261,491.41,0.00017545,30]
[394456945,1763595128788,334.35298271,9.813e-05,2]
[394456946,1763595212152,-7490.0887396,9.886e-05,2]
[394456947,1763595212380,-4392.0293296,9.886e-05,2]
[394456948,1763595212407,-1215.9513408,9.886e-05,2]
[394456949,1763595212622,-10000.01,9.986e-05,2]
[394456950,1763595212898,-3098.05941,9.986e-05,2]
[394456951,1763595226111,3803.89118,9.932e-05,2]
[394456952,1763595226134,3061.1509271,9.932e-05,2]
[394456953,1763595234464,10000.01,9.932e-05,2]
[394456954,1763595234491,10000.01,9.932e-05,2]
[394456955,1763595238164,-2897.92900298,9.932e-05,2]
[394456966,1763595657077,241.68,0.00015914,30]
[394456967,1763595657524,483.36,0.0001736,30]
[394456988,1763595728046,800.0,0.00032877,120]
[394456990,1763595900416,237.73,0.00017196,30]
[394456992,1763595964841,-817.51484254,8.926e-05,2]
[394456993,1763595964873,-153.43272626,9.084e-05,2]
[394456994,1763595989638,211.9726824,8.792e-05,2]
[394456995,1763596015371,196.59631342,9.057e-05,2]
[394456996,1763596022288,198.34,1e-05,2]
[394456997,1763596024472,196.59631342,9.057e-05,2]
[394456999,1763596040171,196.59631342,9.057e-05,2]
[394457000,1763596042357,601.83536888,8.726e-05,2]
[394457001,1763596044834,1069.92954467,9.039e-05,2]
[394457002,1763596048049,200.61936559,9.075e-05,2]
[394457003,1763596062918,200.61936559,9.075e-05,2]
[394457004,1763596070713,200.61936559,9.075e-05,2]
[394457005,1763596079021,200.61936559,9.075e-05,2]
[394457006,1763596082372,198.33,1e-05,2]
[394457007,1763596086713,200.61936559,9.075e-05,2]
[394457008,1763596094786,200.61936559,9.075e-05,2]
[394457009,1763596102547,200.61936559,9.075e-05,2]
[394457010,1763596110537,200.61936559,9.075e-05,2]
[394457011,1763596118299,200.61936559,9.075e-05,2]
[394457012,1763596124199,-200.61936559,9.167e-05,2]
[394457013,1763596126324,200.61936559,9.075e-05,2]
[394457014,1763596142043,1453.35972007,9.081e-05,2]
[394457015,1763596145042,1090.29,0.00016961,30]
[394457016,1763596149989,1453.35972007,9.081e-05,2]
[394457018,1763596164938,1453.35972007,9.081e-05,2]
[394457019,1763596165148,-1453.35972007,9.173e-05,2]
[394457020,1763596165171,-1453.35972007,9.265e-05,2]
[394457021,1763596165190,-159.45125689,9.558e-05,2]
[394457022,1763596165212,-169.77055211,9.558e-05,2]
[394457023,1763596165237,-465.48896681,9.661e-05,2]
[394457024,1763596165259,-434.22967078,9.726e-05,2]
[394457025,1763596165280,-262.59,9.734e-05,2]
[394457026,1763596165301,-276.17890726,9.779e-05,2]
[394457027,1763596165321,-300.0,9.908e-05,2]
[394457028,1763596165342,-317.42291866,9.909e-05,2]
[394457029,1763596165362,-500.0,9.909e-05,2]
[394457030,1763596165383,-500.0,9.909e-05,2]
[394457031,1763596165403,-500.0,9.909e-05,2]
[394457032,1763596165424,-645.54368119,9.909e-05,2]
[394457033,1763596165452,-500.0,9.909e-05,2]
[394457034,1763596165474,-500.0,9.909e-05,2]
[394457035,1763596165494,-500.0,9.909e-05,2]
[394457036,1763596165522,-500.0,9.909e-05,2]
[394457037,1763596165544,-500.0,9.909e-05,2]
[394457038,1763596165571,-500.0,9.909e-05,2]
[394457039,1763596165593,-500.0,9.909e-05,2]
[394457040,1763596165620,-500.0,9.909e-05,2]
[394457041,1763596165642,-500.0,9.909e-05,2]
[394457042,1763596165665,-500.0,9.909e-05,2]
[394457043,1763596165692,-121.64132285,9.909e-05,2]
[394457044,1763596201521,452.14,1e-05,2]
[394457045,1763596202454,452.14,1e-05,2]
[394457046,1763596202778,452.14,1e-05,2]
[394457047,1763596203071,452.14,1e-05,2]
[394457048,1763596203325,2000.0,0.00013699,7]
[394457049,1763596203358,452.14,1e-05,2]
[394457050,1763596203638,452.14,1e-05,2]
[394457051,1763596204001,452.14,1e-05,2]
[394457052,1763596204333,452.14,1e-05,2]
[394457053,1763596204617,452.14,1e-05,2]
[394457054,1763596205048,452.14,1e-05,2]
[394457055,1763596205537,452.14,1e-05,2]
[394457056,1763596205817,64.53274302,1e-05,2]
[394457057,1763596205843,387.60725698,1e-05,2]
[394457058,1763596206170,452.14,1e-05,2]
[394457059,1763596206500,452.14,1e-05,2]
[394457060,1763596206796,452.14,1e-05,2]
[394457061,1763596207157,452.14,1e-05,2]
[394457062,1763596207432,452.14,1e-05,2]
[394457063,1763596207752,452.14,1e-05,2]
[394457064,1763596208020,452.14,1e-05,2]
[394457065,1763596208305,452.14,1e-05,2]
[394457066,1763596208595,452.14,1e-05,2]
[394457067,1763596208922,452.14,1e-05,2]
[394457068,1763596209213,452.14,1e-05,2]
[394457069,1763596209507,452.14,1e-05,2]
[394457070,1763596209791,452.14,1e-05,2]
[394457071,1763596211130,452.14,1.1e-05,2]
[394457072,1763596211404,452.14,1.1e-05,2]
[394457073,1763596211678,452.14,1.1e-05,2]
[394457074,1763596211947,452.14,1.1e-05,2]
[394457075,1763596212218,452.14,1.1e-05,2]
[394457076,1763596212538,452.14,1.1e-05,2]
[394457077,1763596212847,452.14,1.1e-05,2]
[394457078,1763596214188,452.14,1.1e-05,2]
[394457079,1763596214406,117.46274302,1.1e-05,2]
[394457080,1763596214431,334.67725698,1.1e-05,2]
[394457081,1763596214692,452.14,1.1e-05,2]